[Event "Eurasia Open Cup 2019"]
[Site "Ekaterinburg"]
[Date "2019.08.02"]
[Round "3.6"]
[White "Zhigalko, Andrey"]
[Black "Khusenkhojaev, Muhammad"]
[Result "1-0"]
[ECO "C43"]
[WhiteElo "2549"]
[BlackElo "2441"]
[Annotator "ChessBase"]
[PlyCount "49"]
[EventDate "2019.07.31"]
[EventType "swiss"]
[EventCountry "RUS"]
[SourceTitle "playchess.com"]
[Source "ChessBase"]
[SourceQuality "1"]
[TimeControl "5400+30"]

1. e4 {[%emt 0:00:00]} e5 {[%emt 0:00:00]} 2. Nf3 {[%emt 0:00:00]} Nf6 {[%emt 0:00:00]} 3. d4 {[%emt 0:00:00]} Nxe4 {[%emt 0:00:00]} 4. dxe5 {[%emt 0:00:00]} d5 {[%emt 0:00:24]} 5. Nbd2 {[%emt 0:00:10]} Nxd2 {[%emt 0:00:43]} 6. Qxd2 {[%emt 0:02:24]} Be7 {[%emt 0:02:27]} 7. Bd3 {[%emt 0:15:26]} Nc6 {[%emt 0:06:43]} 8. O-O {[%emt 0:22:36]} Bg4 {[%emt 0:01:07]} 9. Qf4 {[%emt 0:02:52]} Bxf3 {[%emt 0:05:08]} 10. gxf3 {[%emt 0:00:05]} O-O {[%emt 0:03:49]} 11. Kh1 {[%emt 0:03:53]} f6 {[%emt 0:05:17]} 12. Rg1 {[%emt 0:10:26]} Nxe5 {[%emt 0:14:54]} 13. Qh6 {[%emt 0:00:12]} g6 {[%emt 0:18:26]} 14. Bxg6 {[%emt 0:10:47]} hxg6 {[%emt 0:00:21]} 15. f4 {[%emt 0:01:13]} Kf7 {[%emt 0:00:23]} 16. fxe5 {[%emt 0:00:43]} Rg8 {[%emt 0:00:08]} 17. Qh7+ {[%emt 0:07:41]} Ke6 {[%emt 0:00:09]} 18. exf6 {[%emt 0:00:18]} Bxf6 {[%emt 0:02:16]} 19. Re1+ {[%emt 0:00:42]} Kd6 {[%emt 0:00:57]} 20. Bf4+ {[%emt 0:04:48]} Kc5 {[%emt 0:00:36]} 21. b4+ {[%emt 0:02:43]} Kc4 {[%emt 0:07:20]} 22. Qh3 {[%emt 0:00:48]} Kb5 {[%emt 0:03:51]} 23. a4+ {[%emt 0:02:05]} Kb6 {[%emt 0:00:35]} 24. Re6+ {[%emt 0:02:18]} c6 {[%emt 0:00:00]} 25. a5+ {[%emt 0:00:28]} 1-0

[Event "Eurasia Open Cup 2019"]
[Site "Ekaterinburg"]
[Date "2019.08.02"]
[Round "3.7"]
[White "Kanter, Eduard"]
[Black "Sivuk, Vitaly"]
[Result "1/2-1/2"]
[ECO "D15"]
[WhiteElo "2384"]
[BlackElo "2546"]
[Annotator "ChessBase"]
[PlyCount "91"]
[EventDate "2019.07.31"]
[EventType "swiss"]
[EventCountry "RUS"]
[SourceTitle "playchess.com"]
[Source "ChessBase"]
[SourceQuality "1"]
[TimeControl "5400+30"]

1. d4 {[%emt 0:00:00]} d5 {[%emt 0:00:00]} 2. c4 {[%emt 0:00:00]} c6 {[%emt 0:00:01]} 3. Nf3 {[%emt 0:00:00]} Nf6 {[%emt 0:00:00]} 4. Nc3 {[%emt 0:00:00]} a6 {[%emt 0:00:00]} 5. e3 {[%emt 0:00:12]} Bf5 {[%emt 0:00:00]} 6. Ne5 {[%emt 0:01:51]} g6 {[%emt 0:02:17]} 7. Qb3 {[%emt 0:05:02]} Ra7 {[%emt 0:00:14]} 8. cxd5 {[%emt 0:09:50]} cxd5 {[%emt 0:00:44]} 9. e4 {[%emt 0:25:25]} Nxe4 {[%emt 0:08:36]} 10. Qxd5 {[%emt 0:01:34]} Nd6 {[%emt 0:06:14]} 11. Be2 {[%emt 0:06:46]} Bg7 {[%emt 0:00:27]} 12. O-O {[%emt 0:00:23]} O-O {[%emt 0:00:00]} 13. Be3 {[%emt 0:00:46]} Nd7 {[%emt 0:04:21]} 14. Qb3 {[%emt 0:02:18]} Ra8 {[%emt 0:02:15]} 15. Nxd7 {[%emt 0:08:37]} Qxd7 {[%emt 0:00:47]} 16. Na4 {[%emt 0:05:26]} Qe6 {[%emt 0:07:08]} 17. Qxe6 {[%emt 0:04:43]} Bxe6 {[%emt 0:02:02]} 18. Bf3 {[%emt 0:00:10]} Rad8 {[%emt 0:01:53]} 19. Rfd1 {[%emt 0:03:51]} b5 {[%emt 0:03:21]} 20. Nc5 {[%emt 0:00:08]} Bc8 {[%emt 0:00:07]} 21. a4 {[%emt 0:05:12]} Nf5 {[%emt 0:03:07]} 22. axb5 {[%emt 0:00:14]} axb5 {[%emt 0:00:07]} 23. Nb3 {[%emt 0:04:19]} Rfe8 {[%emt 0:11:24]} 24. Ra5 {[%emt 0:02:03]} Nd6 {[%emt 0:09:06]} 25. Bf4 {[%emt 0:00:14]} Nc4 {[%emt 0:04:46]} 26. Rxb5 {[%emt 0:00:52]} Ba6 {[%emt 0:00:50]} 27. Rd5 {[%emt 0:01:23]} Nxb2 {[%emt 0:00:19]} 28. Rb1 {[%emt 0:02:54]} Rxd5 {[%emt 0:02:17]} 29. Bxd5 {[%emt 0:00:05]} Nd3 {[%emt 0:00:08]} 30. Be3 {[%emt 0:01:46]} Rb8 {[%emt 0:01:26]} 31. Ra1 {[%emt 0:00:53]} Nb4 {[%emt 0:02:09]} 32. Bf3 {[%emt 0:01:44]} Bc4 {[%emt 0:05:02]} 33. Nd2 {[%emt 0:03:19]} Bd5 {[%emt 0:07:59]} 34. Rb1 {[%emt 0:00:07]} Bxf3 {[%emt 0:00:47]} 35. Nxf3 {[%emt 0:00:09]} Ra8 {[%emt 0:00:16]} 36. Bf4 {[%emt 0:01:21]} Nc2 {[%emt 0:05:12]} 37. d5 {[%emt 0:01:17]} Rd8 {[%emt 0:01:41]} 38. g3 {[%emt 0:00:50]} Bf8 {[%emt 0:01:56]} 39. Rb5 {[%emt 0:01:40]} Na3 {[%emt 0:00:00]} 40. Ra5 {[%emt 0:00:48]} Nc4 {[%emt 0:00:01]} 41. Rb5 {[%emt 0:00:00]} Bg7 {[%emt 0:04:19]} 42. Kg2 {[%emt 0:00:24]} h6 {[%emt 0:00:29]} 43. h4 {[%emt 0:00:23]} Nd6 {[%emt 0:01:00]} 44. Bxd6 {[%emt 0:00:00]} Rxd6 {[%emt 0:00:00]} 45. g4 {[%emt 0:01:09]} e6 {[%emt 0:00:44]} 46. Kg1 {[%emt 0:00:37]} 1/2-1/2

[Event "Eurasia Open Cup 2019"]
[Site "Ekaterinburg"]
[Date "2019.08.02"]
[Round "3.8"]
[White "Sargsyan, Shant"]
[Black "Shubin, Kirill"]
[Result "1-0"]
[ECO "C02"]
[WhiteElo "2529"]
[BlackElo "2426"]
[Annotator "ChessBase"]
[PlyCount "85"]
[EventDate "2019.07.31"]
[EventType "swiss"]
[EventCountry "RUS"]
[SourceTitle "playchess.com"]
[Source "ChessBase"]
[SourceQuality "1"]
[TimeControl "5400+30"]

1. e4 {[%emt 0:00:01]} e6 {[%emt 0:00:00]} 2. d4 {[%emt 0:00:17]} d5 {[%emt 0:00:00]} 3. e5 {[%emt 0:00:54]} c5 {[%emt 0:00:00]} 4. c3 {[%emt 0:00:01]} Ne7 {[%emt 0:00:00]} 5. Nf3 {[%emt 0:00:45]} Nec6 {[%emt 0:00:00]} 6. a3 {[%emt 0:00:39]} a5 {[%emt 0:01:53]} 7. Bb5 {[%emt 0:01:30]} b6 {[%emt 0:01:59]} 8. O-O {[%emt 0:00:44]} Ba6 {[%emt 0:02:55]} 9. a4 {[%emt 0:02:09]} Be7 {[%emt 0:02:29]} 10. Na3 {[%emt 0:02:28]} O-O {[%emt 0:02:44]} 11. Qe2 {[%emt 0:03:02]} cxd4 {[%emt 0:09:56]} 12. cxd4 {[%emt 0:00:44]} Nb4 {[%emt 0:02:56]} 13. Bd2 {[%emt 0:04:46]} Bb7 {[%emt 0:01:51]} 14. Rfc1 {[%emt 0:00:01]} N8c6 {[%emt 0:01:52]} 15. Qe3 {[%emt 0:04:25]} Rc8 {[%emt 0:00:08]} 16. g3 {[%emt 0:03:57]} Na7 {[%emt 0:03:16]} 17. Bf1 {[%emt 0:04:09]} Qd7 {[%emt 0:04:28]} 18. h4 {[%emt 0:02:09]} Rxc1 {[%emt 0:01:47]} 19. Rxc1 {[%emt 0:08:32]} Bc6 {[%emt 0:05:19]} 20. b3 {[%emt 0:00:03]} Rc8 {[%emt 0:03:42]} 21. h5 {[%emt 0:02:54]} Bb7 {[%emt 0:02:55]} 22. h6 {[%emt 0:01:50]} Rxc1 {[%emt 0:04:53]} 23. Bxc1 {[%emt 0:02:02]} g6 {[%emt 0:02:17]} 24. Nh2 {[%emt 0:00:00]} Ba6 {[%emt 0:01:17]} 25. Bxa6 {[%emt 0:01:24]} Nxa6 {[%emt 0:02:59]} 26. Ng4 {[%emt 0:02:20]} Qc8 {[%emt 0:00:38]} 27. Kg2 {[%emt 0:00:08]} Nb8 {[%emt 0:07:27]} 28. Nb1 {[%emt 0:01:54]} Qc2 {[%emt 0:01:19]} 29. Ba3 {[%emt 0:02:50]} Bd8 {[%emt 0:02:37]} 30. Nc3 {[%emt 0:01:40]} Nd7 {[%emt 0:00:20]} 31. Nb5 {[%emt 0:04:33]} Nc6 {[%emt 0:02:21]} 32. Qf3 {[%emt 0:01:33]} Bg5 {[%emt 0:04:55]} 33. Nd6 {[%emt 0:05:19]} Nd8 {[%emt 0:07:46]} 34. Ne8 {[%emt 0:04:49]} Qe4 {[%emt 0:00:03]} 35. Qxe4 {[%emt 0:01:50]} dxe4 {[%emt 0:05:52]} 36. f4 {[%emt 0:01:38]} exf3+ {[%emt 0:00:04]} 37. Kxf3 {[%emt 0:01:34]} Nc6 {[%emt 0:01:23]} 38. Ke4 {[%emt 0:00:32]} Nd8 {[%emt 0:01:06]} 39. Nef6+ {[%emt 0:00:39]} Nxf6+ {[%emt 0:03:00]} 40. Nxf6+ {[%emt 0:02:50]} Bxf6 {[%emt 0:00:00]} 41. exf6 {[%emt 0:00:34]} g5 {[%emt 0:00:00]} 42. Bd6 {[%emt 0:00:00]} Nc6 {[%emt 0:00:16]} 43. d5 {[%emt 0:01:14]} 1-0

[Event "Eurasia Open Cup 2019"]
[Site "Ekaterinburg"]
[Date "2019.08.02"]
[Round "3.9"]
[White "Fotin, Vladimir"]
[Black "Kunin, Vitaly"]
[Result "0-1"]
[ECO "A29"]
[WhiteElo "2368"]
[BlackElo "2527"]
[Annotator "ChessBase"]
[PlyCount "108"]
[EventDate "2019.07.31"]
[EventType "swiss"]
[EventCountry "RUS"]
[SourceTitle "playchess.com"]
[Source "ChessBase"]
[SourceQuality "1"]
[TimeControl "5400+30"]

1. c4 {[%emt 0:03:28]} Nf6 {[%emt 0:00:00]} 2. Nc3 {[%emt 0:01:15]} e5 {[%emt 0:00:28]} 3. g3 {[%emt 0:01:15]} d5 {[%emt 0:02:04]} 4. cxd5 {[%emt 0:00:15]} Nxd5 {[%emt 0:00:00]} 5. Bg2 {[%emt 0:00:14]} Nxc3 {[%emt 0:00:09]} 6. bxc3 {[%emt 0:00:18]} Nc6 {[%emt 0:00:09]} 7. d3 {[%emt 0:03:52]} Bc5 {[%emt 0:00:37]} 8. Nf3 {[%emt 0:03:05]} O-O {[%emt 0:02:00]} 9. O-O {[%emt 0:00:27]} Bb6 {[%emt 0:01:43]} 10. a4 {[%emt 0:05:55]} Re8 {[%emt 0:02:19]} 11. Nd2 {[%emt 0:05:26]} Be6 {[%emt 0:03:27]} 12. Nb3 {[%emt 0:10:55]} a5 {[%emt 0:11:11]} 13. Rb1 {[%emt 0:01:57]} Qd7 {[%emt 0:01:32]} 14. Nd2 {[%emt 0:05:42]} Rad8 {[%emt 0:04:14]} 15. Ba3 {[%emt 0:03:43]} f5 {[%emt 0:11:49]} 16. Nc4 {[%emt 0:09:52]} Ba7 {[%emt 0:07:08]} 17. Qc2 {[%emt 0:02:09]} e4 {[%emt 0:08:53]} 18. Rxb7 {[%emt 0:02:52]} Bxc4 {[%emt 0:13:45]} 19. dxc4 {[%emt 0:00:08]} Bb6 {[%emt 0:00:53]} 20. c5 {[%emt 0:08:00]} Qc8 {[%emt 0:00:53]} 21. Rxb6 {[%emt 0:00:07]} cxb6 {[%emt 0:00:39]} 22. cxb6 {[%emt 0:00:00]} Qe6 {[%emt 0:03:08]} 23. Bc5 {[%emt 0:03:48]} Qc4 {[%emt 0:00:25]} 24. Be3 {[%emt 0:00:50]} Nd4 {[%emt 0:01:41]} 25. Bxd4 {[%emt 0:07:09]} Rxd4 {[%emt 0:00:40]} 26. Rb1 {[%emt 0:01:50]} Qxa4 {[%emt 0:08:30]} 27. Qxa4 {[%emt 0:02:35]} Rxa4 {[%emt 0:00:07]} 28. b7 {[%emt 0:00:12]} Rb8 {[%emt 0:00:35]} 29. f3 {[%emt 0:00:05]} Rc4 {[%emt 0:00:59]} 30. fxe4 {[%emt 0:01:40]} fxe4 {[%emt 0:00:11]} 31. Kf2 {[%emt 0:00:03]} a4 {[%emt 0:11:38]} 32. Ke3 {[%emt 0:00:24]} Rxc3+ {[%emt 0:00:00]} 33. Kxe4 {[%emt 0:00:56]} Kf7 {[%emt 0:02:41]} 34. Kd4 {[%emt 0:00:28]} Rc2 {[%emt 0:00:10]} 35. Bd5+ {[%emt 0:00:39]} Ke7 {[%emt 0:00:37]} 36. e4 {[%emt 0:00:36]} a3 {[%emt 0:00:15]} 37. Rb3 {[%emt 0:02:38]} a2 {[%emt 0:00:36]} 38. Ra3 {[%emt 0:00:30]} Rxh2 {[%emt 0:01:23]} 39. Kc5 {[%emt 0:02:25]} Rb2 {[%emt 0:00:23]} 40. g4 {[%emt 0:05:01]} h6 {[%emt 0:00:07]} 41. Ra6 {[%emt 0:02:07]} g6 {[%emt 0:01:03]} 42. Kd4 {[%emt 0:01:23]} h5 {[%emt 0:00:09]} 43. gxh5 {[%emt 0:00:05]} gxh5 {[%emt 0:00:34]} 44. Bxa2 {[%emt 0:00:14]} R8xb7 {[%emt 0:00:00]} 45. Ke5 {[%emt 0:03:26]} R2b6 {[%emt 0:00:54]} 46. Ra3 {[%emt 0:00:32]} Rh6 {[%emt 0:01:23]} 47. Bd5 {[%emt 0:00:05]} Rbb6 {[%emt 0:00:42]} 48. Ra7+ {[%emt 0:00:35]} Kf8 {[%emt 0:00:09]} 49. Kf5 {[%emt 0:00:41]} h4 {[%emt 0:00:44]} 50. Ra8+ {[%emt 0:00:29]} Ke7 {[%emt 0:00:07]} 51. Kg5 {[%emt 0:01:40]} Rbg6+ {[%emt 0:00:42]} 52. Kf5 {[%emt 0:00:00]} h3 {[%emt 0:00:00]} 53. e5 {[%emt 0:00:15]} h2 {[%emt 0:00:31]} 54. Ra7+ {[%emt 0:00:08]} Kd8 {[%emt 0:00:00]} 0-1

[Event "Eurasia Open Cup 2019"]
[Site "Ekaterinburg"]
[Date "2019.08.02"]
[Round "3.11"]
[White "Vokhidov, Shamsiddin"]
[Black "Kotlyar, Kirill"]
[Result "1-0"]
[ECO "B31"]
[WhiteElo "2515"]
[BlackElo "2387"]
[Annotator "ChessBase"]
[PlyCount "77"]
[EventDate "2019.07.31"]
[EventType "swiss"]
[EventCountry "RUS"]
[SourceTitle "playchess.com"]
[Source "ChessBase"]
[SourceQuality "1"]
[TimeControl "5400+30"]

1. e4 {[%emt 0:00:00]} c5 {[%emt 0:00:00]} 2. Nf3 {[%emt 0:00:00]} Nc6 {[%emt 0:00:00]} 3. Bb5 {[%emt 0:00:00]} g6 {[%emt 0:00:04]} 4. Bxc6 {[%emt 0:01:44]} dxc6 {[%emt 0:00:27]} 5. d3 {[%emt 0:00:04]} Bg7 {[%emt 0:02:01]} 6. h3 {[%emt 0:00:00]} e5 {[%emt 0:01:10]} 7. Be3 {[%emt 0:02:19]} Qe7 {[%emt 0:00:38]} 8. Qd2 {[%emt 0:04:30]} Nf6 {[%emt 0:11:27]} 9. Nc3 {[%emt 0:00:07]} Nd7 {[%emt 0:00:43]} 10. a3 {[%emt 0:01:07]} a5 {[%emt 0:09:41]} 11. Bh6 {[%emt 0:09:01]} O-O {[%emt 0:15:25]} 12. Bxg7 {[%emt 0:02:29]} Kxg7 {[%emt 0:00:26]} 13. O-O {[%emt 0:01:33]} f6 {[%emt 0:04:17]} 14. Qe3 {[%emt 0:03:32]} Rf7 {[%emt 0:03:13]} 15. Nd2 {[%emt 0:01:25]} a4 {[%emt 0:00:55]} 16. Ne2 {[%emt 0:05:37]} Nf8 {[%emt 0:06:31]} 17. f4 {[%emt 0:06:14]} exf4 {[%emt 0:00:56]} 18. Nxf4 {[%emt 0:00:15]} Ne6 {[%emt 0:00:12]} 19. Nc4 {[%emt 0:01:49]} Nxf4 {[%emt 0:17:05]} 20. Qxf4 {[%emt 0:01:33]} Be6 {[%emt 0:01:02]} 21. Nd6 {[%emt 0:03:40]} Rff8 {[%emt 0:00:47]} 22. Rae1 {[%emt 0:00:17]} b5 {[%emt 0:09:41]} 23. Nf5+ {[%emt 0:07:39]} Bxf5 {[%emt 0:02:16]} 24. exf5 {[%emt 0:02:54]} Qd7 {[%emt 0:00:00]} 25. Re6 {[%emt 0:05:12]} Rae8 {[%emt 0:08:00]} 26. Qd6 {[%emt 0:10:04]} Qxd6 {[%emt 0:01:39]} 27. Rxd6 {[%emt 0:00:16]} Re2 {[%emt 0:00:27]} 28. Rf2 {[%emt 0:00:00]} Rxf2 {[%emt 0:00:14]} 29. Kxf2 {[%emt 0:00:41]} Rc8 {[%emt 0:01:39]} 30. g4 {[%emt 0:03:14]} Rc7 {[%emt 0:02:14]} 31. h4 {[%emt 0:00:01]} gxf5 {[%emt 0:00:10]} 32. gxf5 {[%emt 0:01:02]} c4 {[%emt 0:00:05]} 33. dxc4 {[%emt 0:03:46]} bxc4 {[%emt 0:00:45]} 34. Ke3 {[%emt 0:00:15]} Kh6 {[%emt 0:00:00]} 35. Rxf6+ {[%emt 0:01:07]} Kh5 {[%emt 0:00:00]} 36. Kf4 {[%emt 0:00:43]} Rb7 {[%emt 0:00:00]} 37. Rxc6 {[%emt 0:00:06]} Rxb2 {[%emt 0:01:01]} 38. Rxc4 {[%emt 0:00:30]} Kxh4 {[%emt 0:00:38]} 39. f6 {[%emt 0:00:30]} 1-0

[Event "Eurasia Open Cup 2019"]
[Site "Ekaterinburg"]
[Date "2019.08.02"]
[Round "3.13"]
[White "Bocharov, Dmitry"]
[Black "Guseva, Marina"]
[Result "1/2-1/2"]
[ECO "B12"]
[WhiteElo "2506"]
[BlackElo "2379"]
[Annotator "ChessBase"]
[PlyCount "88"]
[EventDate "2019.07.31"]
[EventType "swiss"]
[EventCountry "RUS"]
[SourceTitle "playchess.com"]
[Source "ChessBase"]
[SourceQuality "1"]
[TimeControl "5400+30"]

1. e4 {[%emt 0:01:49]} c6 {[%emt 0:00:00]} 2. d4 {[%emt 0:00:20]} d5 {[%emt 0:00:00]} 3. e5 {[%emt 0:00:21]} Bf5 {[%emt 0:00:00]} 4. Nf3 {[%emt 0:01:22]} e6 {[%emt 0:00:00]} 5. Be2 {[%emt 0:00:06]} Nd7 {[%emt 0:03:17]} 6. O-O {[%emt 0:01:00]} Ne7 {[%emt 0:00:04]} 7. c3 {[%emt 0:03:15]} h6 {[%emt 0:01:28]} 8. a4 {[%emt 0:03:38]} Qc7 {[%emt 0:08:26]} 9. Na3 {[%emt 0:05:53]} Bh7 {[%emt 0:03:15]} 10. b4 {[%emt 0:10:42]} a5 {[%emt 0:01:25]} 11. Bd2 {[%emt 0:02:59]} Nc8 {[%emt 0:07:57]} 12. Qb3 {[%emt 0:08:28]} Ncb6 {[%emt 0:15:03]} 13. Rfc1 {[%emt 0:02:21]} Be7 {[%emt 0:01:50]} 14. bxa5 {[%emt 0:07:51]} Rxa5 {[%emt 0:00:04]} 15. c4 {[%emt 0:00:44]} dxc4 {[%emt 0:00:23]} 16. Nxc4 {[%emt 0:01:03]} Nxc4 {[%emt 0:00:19]} 17. Bxc4 {[%emt 0:02:28]} Ra8 {[%emt 0:05:55]} 18. a5 {[%emt 0:03:03]} O-O {[%emt 0:11:00]} 19. Bd3 {[%emt 0:02:19]} Bxd3 {[%emt 0:01:34]} 20. Qxd3 {[%emt 0:01:31]} Rfd8 {[%emt 0:03:49]} 21. Qe4 {[%emt 0:01:33]} Nb8 {[%emt 0:06:07]} 22. Rab1 {[%emt 0:03:31]} Rd5 {[%emt 0:00:13]} 23. h4 {[%emt 0:01:37]} Qd7 {[%emt 0:01:50]} 24. g4 {[%emt 0:08:53]} c5 {[%emt 0:01:38]} 25. g5 {[%emt 0:01:46]} h5 {[%emt 0:09:02]} 26. g6 {[%emt 0:02:15]} Nc6 {[%emt 0:00:00]} 27. gxf7+ {[%emt 0:04:15]} Kxf7 {[%emt 0:00:00]} 28. Bg5 {[%emt 0:02:03]} cxd4 {[%emt 0:04:39]} 29. Bxe7 {[%emt 0:00:26]} Kxe7 {[%emt 0:00:20]} 30. Qg6 {[%emt 0:00:51]} Kd8 {[%emt 0:02:47]} 31. Ng5 {[%emt 0:05:07]} Raxa5 {[%emt 0:00:56]} 32. Rxb7 {[%emt 0:06:16]} Qxb7 {[%emt 0:00:43]} 33. Nxe6+ {[%emt 0:01:01]} Kd7 {[%emt 0:00:25]} 34. Qf7+ {[%emt 0:02:20]} Ne7 {[%emt 0:00:10]} 35. Nf8+ {[%emt 0:00:00]} Kd8 {[%emt 0:00:05]} 36. Ne6+ {[%emt 0:00:00]} Kd7 {[%emt 0:00:03]} 37. Nxg7 {[%emt 0:01:10]} Rxe5 {[%emt 0:11:01]} 38. Qe8+ {[%emt 0:00:49]} Kd6 {[%emt 0:00:02]} 39. Qd8+ {[%emt 0:00:03]} Qd7 {[%emt 0:00:03]} 40. Qb8+ {[%emt 0:01:32]} Kd5 {[%emt 0:00:03]} 41. Qb3+ {[%emt 0:00:40]} Kd6 {[%emt 0:00:12]} 42. Qb8+ {[%emt 0:02:21]} Kd5 {[%emt 0:00:04]} 43. Qb3+ {[%emt 0:00:11]} Kd6 {[%emt 0:00:03]} 44. Qb8+ {[%emt 0:01:10]} Kd5 {[%emt 0:00:34]} 1/2-1/2

[Event "Eurasia Open Cup 2019"]
[Site "Ekaterinburg"]
[Date "2019.08.02"]
[Round "3.14"]
[White "Ovchinnikov, Vsevolod"]
[Black "Burmakin, Vladimir"]
[Result "1/2-1/2"]
[ECO "D11"]
[WhiteElo "2346"]
[BlackElo "2506"]
[Annotator "ChessBase"]
[PlyCount "131"]
[EventDate "2019.07.31"]
[EventType "swiss"]
[EventCountry "RUS"]
[SourceTitle "playchess.com"]
[Source "ChessBase"]
[SourceQuality "1"]
[TimeControl "5400+30"]

1. d4 {[%emt 0:00:00]} Nf6 {[%emt 0:00:00]} 2. c4 {[%emt 0:00:00]} c6 {[%emt 0:00:00]} 3. Nf3 {[%emt 0:00:00]} d5 {[%emt 0:00:00]} 4. e3 {[%emt 0:00:00]} Bg4 {[%emt 0:00:00]} 5. Qb3 {[%emt 0:00:00]} Qb6 {[%emt 0:01:38]} 6. Nc3 {[%emt 0:11:19]} e6 {[%emt 0:00:24]} 7. Nh4 {[%emt 0:02:43]} Be7 {[%emt 0:09:16]} 8. h3 {[%emt 0:02:01]} Bh5 {[%emt 0:00:00]} 9. g4 {[%emt 0:00:00]} Nfd7 {[%emt 0:00:49]} 10. Nf5 {[%emt 0:09:32]} exf5 {[%emt 0:01:20]} 11. gxh5 {[%emt 0:00:08]} dxc4 {[%emt 0:00:18]} 12. Qxc4 {[%emt 0:06:41]} Nf6 {[%emt 0:00:09]} 13. Rg1 {[%emt 0:02:54]} g6 {[%emt 0:01:51]} 14. Be2 {[%emt 0:05:42]} Nbd7 {[%emt 0:04:30]} 15. a3 {[%emt 0:08:36]} Qc7 {[%emt 0:06:43]} 16. Bf3 {[%emt 0:02:36]} Nb6 {[%emt 0:01:51]} 17. Qb3 {[%emt 0:00:43]} Qh2 {[%emt 0:06:50]} 18. Rh1 {[%emt 0:00:11]} Qd6 {[%emt 0:00:25]} 19. Rg1 {[%emt 0:14:13]} Nxh5 {[%emt 0:07:25]} 20. Bxh5 {[%emt 0:00:06]} gxh5 {[%emt 0:00:32]} 21. Bd2 {[%emt 0:05:23]} Qe6 {[%emt 0:02:29]} 22. Qxe6 {[%emt 0:00:43]} fxe6 {[%emt 0:00:03]} 23. Ne2 {[%emt 0:03:37]} Kf7 {[%emt 0:03:25]} 24. Nf4 {[%emt 0:01:08]} Rhg8 {[%emt 0:00:07]} 25. Ke2 {[%emt 0:00:20]} Bd6 {[%emt 0:01:48]} 26. Rxg8 {[%emt 0:07:50]} Rxg8 {[%emt 0:01:51]} 27. Nd3 {[%emt 0:00:02]} Nd7 {[%emt 0:05:10]} 28. Bb4 {[%emt 0:02:28]} Bb8 {[%emt 0:01:10]} 29. Nc5 {[%emt 0:07:42]} Nxc5 {[%emt 0:00:32]} 30. Bxc5 {[%emt 0:00:02]} Rg2 {[%emt 0:04:32]} 31. Rh1 {[%emt 0:00:48]} Ke8 {[%emt 0:02:28]} 32. Kf3 {[%emt 0:00:00]} Rg8 {[%emt 0:00:26]} 33. Rd1 {[%emt 0:00:44]} b6 {[%emt 0:03:12]} 34. Bb4 {[%emt 0:00:31]} a5 {[%emt 0:01:03]} 35. Bc3 {[%emt 0:00:00]} a4 {[%emt 0:00:00]} 36. Rc1 {[%emt 0:00:37]} Bd6 {[%emt 0:02:14]} 37. Rd1 {[%emt 0:02:39]} Kd7 {[%emt 0:00:01]} 38. Rc1 {[%emt 0:00:43]} Be7 {[%emt 0:08:19]} 39. Rd1 {[%emt 0:01:26]} Rg6 {[%emt 0:01:55]} 40. Rc1 {[%emt 0:01:04]} Bf6 {[%emt 0:05:40]} 41. Bb4 {[%emt 0:00:01]} e5 {[%emt 0:02:16]} 42. dxe5 {[%emt 0:00:06]} Bxe5 {[%emt 0:00:33]} 43. Bc3 {[%emt 0:00:32]} Bd6 {[%emt 0:00:00]} 44. Rd1 {[%emt 0:01:05]} Ke6 {[%emt 0:00:00]} 45. e4 {[%emt 0:03:40]} b5 {[%emt 0:01:01]} 46. Re1 {[%emt 0:00:54]} c5 {[%emt 0:01:49]} 47. exf5+ {[%emt 0:00:25]} Kxf5 {[%emt 0:00:04]} 48. Re8 {[%emt 0:00:22]} b4 {[%emt 0:01:05]} 49. Bd2 {[%emt 0:00:02]} Rg1 {[%emt 0:07:27]} 50. Ra8 {[%emt 0:00:44]} Rh1 {[%emt 0:00:29]} 51. axb4 {[%emt 0:01:03]} cxb4 {[%emt 0:00:32]} 52. Ra5+ {[%emt 0:00:34]} Ke6 {[%emt 0:00:46]} 53. Rxh5 {[%emt 0:01:12]} a3 {[%emt 0:00:00]} 54. bxa3 {[%emt 0:00:00]} bxa3 {[%emt 0:00:00]} 55. Ra5 {[%emt 0:00:39]} Rxh3+ {[%emt 0:00:54]} 56. Ke4 {[%emt 0:00:00]} Rh2 {[%emt 0:02:20]} 57. Bc1 {[%emt 0:00:43]} Rxf2 {[%emt 0:03:54]} 58. Bxa3 {[%emt 0:00:31]} Rf4+ {[%emt 0:01:03]} 59. Ke3 {[%emt 0:00:07]} Bc7 {[%emt 0:00:25]} 60. Rh5 {[%emt 0:01:14]} Rf7 {[%emt 0:00:17]} 61. Bb2 {[%emt 0:00:00]} Bf4+ {[%emt 0:00:19]} 62. Ke4 {[%emt 0:00:31]} h6 {[%emt 0:00:39]} 63. Ra5 {[%emt 0:01:02]} Bd6 {[%emt 0:00:39]} 64. Bc1 {[%emt 0:00:24]} Rf6 {[%emt 0:00:22]} 65. Rh5 {[%emt 0:00:02]} Bf8 {[%emt 0:00:09]} 66. Re5+ {[%emt 0:00:29]} 1/2-1/2

[Event "Eurasia Open Cup 2019"]
[Site "Ekaterinburg"]
[Date "2019.08.02"]
[Round "3.15"]
[White "Gleizerov, Evgeny"]
[Black "Pozin, Sergey"]
[Result "1-0"]
[ECO "A60"]
[WhiteElo "2498"]
[BlackElo "2299"]
[Annotator "ChessBase"]
[PlyCount "51"]
[EventDate "2019.07.31"]
[EventType "swiss"]
[EventCountry "RUS"]
[SourceTitle "playchess.com"]
[Source "ChessBase"]
[SourceQuality "1"]
[TimeControl "5400+30"]

1. d4 {[%emt 0:00:00]} Nf6 {[%emt 0:00:00]} 2. c4 {[%emt 0:00:00]} e6 {[%emt 0:00:00]} 3. g3 {[%emt 0:00:00]} c5 {[%emt 0:00:00]} 4. d5 {[%emt 0:00:00]} exd5 {[%emt 0:00:07]} 5. cxd5 {[%emt 0:00:00]} b5 {[%emt 0:00:08]} 6. Nf3 {[%emt 0:00:00]} Bb7 {[%emt 0:01:19]} 7. e4 {[%emt 0:00:09]} Nxe4 {[%emt 0:01:16]} 8. Bg2 {[%emt 0:00:03]} Be7 {[%emt 0:11:17]} 9. O-O {[%emt 0:00:25]} O-O {[%emt 0:00:08]} 10. Re1 {[%emt 0:00:37]} f5 {[%emt 0:11:34]} 11. Nc3 {[%emt 0:00:21]} Na6 {[%emt 0:19:07]} 12. Nxb5 {[%emt 0:11:21]} c4 {[%emt 0:07:44]} 13. Be3 {[%emt 0:28:25]} Nb4 {[%emt 0:16:20]} 14. d6 {[%emt 0:03:16]} Bf6 {[%emt 0:00:05]} 15. Qa4 {[%emt 0:00:53]} a5 {[%emt 0:02:51]} 16. a3 {[%emt 0:00:55]} Bxb2 {[%emt 0:18:26]} 17. Rab1 {[%emt 0:07:48]} Bc3 {[%emt 0:00:00]} 18. axb4 {[%emt 0:00:13]} axb4 {[%emt 0:00:00]} 19. Qc2 {[%emt 0:00:33]} Qa5 {[%emt 0:04:39]} 20. Nxc3 {[%emt 0:08:51]} Nxc3 {[%emt 0:00:04]} 21. Rbc1 {[%emt 0:01:08]} Be4 {[%emt 0:02:19]} 22. Qd2 {[%emt 0:01:00]} Qa2 {[%emt 0:01:48]} 23. Bd4 {[%emt 0:05:16]} Qxd2 {[%emt 0:01:11]} 24. Nxd2 {[%emt 0:01:26]} Bxg2 {[%emt 0:00:06]} 25. Kxg2 {[%emt 0:00:00]} Nb5 {[%emt 0:00:59]} 26. Rxc4 {[%emt 0:00:00]} 1-0